bitfinex-derivatives/quotes_ETHF0:USTF0_20250115
["timestamp","ask_amount","ask_price","bid_price","bid_amount"]
[1736900713631,0.30875,3239.9,3239.7,0.30877]
[1736900713820,1.4734,3240.0,3239.6,3.2078]
[1736900714021,1.4734,3240.0,3239.9,3.23877467]
[1736900714324,3.2078,3240.7,3240.6,0.30869]
[1736900714530,4.1915,3241.1,3240.6,2.93002467]
[1736900714730,3.6999,3241.1,3241.0,0.30865]
[1736900715232,3.6999,3241.1,3240.7,0.9502]
[1736900715436,0.30867,3240.8,3240.3,2.93002467]
[1736900715731,3.2078,3241.1,3240.7,2.93002467]
[1736900716129,0.30867,3240.8,3240.7,2.93002467]
[1736900716525,0.30865,3241.0,3240.3,2.93002467]
[1736900716730,0.30869,3240.6,3240.3,2.93002467]
[1736900716940,0.30869,3240.6,3240.4,0.3087]
[1736900717433,0.3087,3240.5,3240.3,3.23873467]
[1736900717634,0.30871,3240.4,3240.3,2.93002467]
[1736900718133,4.6349,3240.7,3239.9,2.93002467]
[1736900718341,4.6349,3240.7,3239.6,0.48]
[1736900718342,0.30877,3239.8,3239.6,0.30878]
[1736900718632,3.2078,3240.1,3239.6,0.30878]
[1736900718633,0.4731,3239.7,3239.6,0.30878]
[1736900719333,0.9503,3240.0,3239.9,0.30875]
[1736900719529,0.9503,3240.0,3239.9,3.23877467]
[1736900720434,0.9503,3240.0,3239.9,2.93002467]
[1736900720634,1.25904,3240.0,3239.9,2.93002467]
[1736900720835,0.9503,3240.0,3239.5,2.93002467]
[1736900721235,0.30876,3239.9,3239.8,0.30876]
[1736900721736,0.9503,3240.0,3239.9,0.30875]
[1736900723041,0.78182,3240.3,3240.1,0.30873]
[1736900723235,0.4731,3240.3,3240.2,0.30873]
[1736900723541,0.4731,3240.3,3240.2,2.72448451]
[1736900723939,0.4731,3240.3,3240.2,2.41575451]
[1736900723940,0.78182,3240.3,3240.2,2.41575451]
[1736900724641,0.30874,3240.0,3239.9,2.72450451]
[1736900724839,0.30874,3240.1,3239.9,2.72450451]
[1736900725041,0.4731,3240.3,3239.9,2.41575451]
[1736900725336,0.4731,3240.3,3240.2,2.41575451]
[1736900725543,0.78182,3240.3,3240.2,2.41575451]
[1736900726038,0.77171,3240.7,3240.2,2.41575451]
[1736900726039,3.2078,3241.8,3240.2,8.71475451]
[1736900726241,8.46730111,3241.9,3241.6,2.72434451]
[1736900726433,8.46730111,3241.9,3241.6,5.93214451]
[1736900726635,8.46730111,3241.9,3241.8,0.30857]
[1736900726834,8.46730111,3241.9,3241.8,1.60757]
[1736900727137,7.01898485,3241.9,3241.8,4.02332451]
[1736900727339,2.34433041,3241.9,3241.8,4.02332451]
[1736900727545,3.00024738,3242.1,3241.5,0.3086]
[1736900727733,0.9625,3242.0,3241.9,0.30856]
[1736900728041,0.9625,3242.0,3241.8,2.41575451]
[1736900728246,0.4882,3242.0,3241.9,0.30856]
[1736900728948,3.00024738,3242.1,3241.8,2.41575451]
[1736900729136,3.00024738,3242.1,3242.0,0.30855]
[1736900729335,3.00024738,3242.1,3242.0,3.23258797]
[1736900729535,3.00024738,3242.1,3242.0,2.92403797]
[1736900730238,3.00024738,3242.1,3242.0,3.23258797]
[1736900730736,3.00024738,3242.1,3242.0,2.92403797]
[1736900731140,3.00024738,3242.1,3242.0,3.23258797]
[1736900733743,3.00024738,3242.1,3242.0,2.92403797]
[1736900733942,3.00024738,3242.1,3242.0,3.23258797]
[1736900734943,3.00024738,3242.1,3242.0,2.92403797]
[1736900735447,3.00024738,3242.1,3242.0,3.23258797]
[1736900735843,3.00024738,3242.1,3242.0,6.44038797]
[1736900736740,0.22228942,3242.1,3242.0,6.44038797]
[1736900737046,0.4743,3242.7,3242.0,6.13183797]
[1736900737247,0.4743,3242.7,3242.5,0.30851]
[1736900737547,0.002,3243.0,3242.9,0.30847]
[1736900737743,0.9277,3243.8,3242.9,11.13183797]
[1736900737935,18.2078,3244.0,3243.7,2.92403797]
[1736900738142,18.2078,3244.0,3243.7,3.23242797]
[1736900738345,18.2078,3244.0,3243.7,2.92403797]
[1736900738545,0.471,3243.9,3243.7,2.92403797]
[1736900738847,0.9482,3243.9,3243.7,2.92403797]
[1736900739051,0.9482,3243.9,3243.0,2.92403797]
[1736900739249,0.9482,3243.9,3243.3,2.92403797]
[1736900739250,3.2078,3243.4,3243.3,2.92403797]
[1736900739442,3.2078,3243.4,3242.9,3.2078]
[1736900739443,3.2078,3243.4,3243.0,2.92403797]
[1736900739642,0.30844,3243.2,3243.0,2.92403797]
[1736900740049,0.78835,3243.1,3243.0,2.92403797]
[1736900740547,0.30849,3242.7,3242.4,2.92403797]
[1736900740748,3.2078,3242.9,3242.4,2.92403797]
[1736900740943,0.30849,3242.7,3242.4,2.92403797]
[1736900741149,3.2078,3242.9,3242.4,2.92403797]
[1736900741450,0.30849,3242.7,3242.4,3.23254797]
[1736900742150,3.2078,3242.9,3242.8,0.30848]
[1736900742351,3.2078,3242.9,3242.8,3.23251797]
[1736900742550,3.51627,3242.9,3242.8,2.92403797]
[1736900744350,3.2078,3242.9,3242.8,2.92403797]
[1736900745248,3.51627,3242.9,3242.8,2.92403797]
[1736900745746,0.4681,3243.5,3242.8,2.92403797]
[1736900745951,0.30845,3243.1,3242.9,0.30846]
[1736900746150,0.30849,3242.7,3242.5,0.30851]
[1736900746447,4.43408583,3243.4,3242.5,3.23254797]
[1736900746448,0.463,3242.6,3242.5,3.23254797]
[1736900749357,0.463,3242.6,3242.5,2.72057811]
[1736900751854,0.7715,3242.6,3242.5,2.41206811]
[1736900752053,0.463,3242.6,3242.5,2.41206811]
[1736900752255,0.463,3242.6,3242.5,2.72057811]
[1736900752457,0.9629,3242.7,3242.5,2.41206811]
[1736900752659,0.9629,3242.7,3242.6,0.3085]
[1736900753857,0.9629,3242.7,3242.5,2.41206811]
[1736900753858,0.3085,3242.6,3242.5,2.72056811]
[1736900754057,0.7723,3242.6,3242.5,2.41206811]
[1736900754257,0.4638,3242.6,3242.5,2.72057811]
[1736900754556,0.7723,3242.6,3242.5,2.41206811]
[1736900755053,0.7723,3242.6,3242.5,2.72057811]
[1736900755257,0.7723,3242.6,3242.5,2.41206811]
[1736900756054,0.7723,3242.6,3242.5,2.72057811]
[1736900756256,0.7723,3242.6,3242.5,2.41206811]
[1736900758055,0.4638,3242.6,3242.5,2.72057811]
[1736900759251,0.4638,3242.6,3241.9,2.41206811]
[1736900759252,0.30855,3242.0,3241.9,2.41206811]
[1736900759650,0.30855,3242.0,3241.9,2.72062811]
[1736900759855,0.30855,3242.0,3241.9,2.41206811]
[1736900760851,1.23385,3242.0,3241.9,2.41206811]
[1736900761449,1.23385,3242.0,3241.8,0.30857]
[1736900761450,0.9253,3242.0,3241.8,2.41206811]
[1736900761651,0.30859,3241.6,3241.5,2.41206811]
[1736900761855,0.30859,3241.6,3241.5,2.72066811]
[1736900762055,0.30859,3241.6,3241.5,2.41206811]
[1736900764268,3.2078,3241.7,3240.9,3.51645]
[1736900764468,0.30864,3241.1,3241.0,0.30865]
[1736900764657,0.30864,3241.1,3241.0,2.41206811]
[1736900764858,0.7715,3241.6,3241.0,2.41206811]
[1736900765064,0.7715,3241.6,3241.3,2.41206811]
[1736900765065,0.30861,3241.4,3241.3,2.41206811]
[1736900767664,0.7715,3241.6,3241.0,2.41206811]
[1736900767867,3.51644,3241.1,3241.0,2.41206811]
[1736900770664,3.51644,3241.1,3240.7,2.41206811]
[1736900770665,3.2078,3241.1,3240.7,2.41206811]
[1736900770964,0.30867,3240.8,3240.7,2.41206811]
[1736900772374,3.2078,3241.1,3240.7,2.41206811]
[1736900772667,3.2078,3241.1,3240.4,3.6918]
[1736900772668,3.2078,3241.6,3241.5,0.3086]
[1736900772870,3.2078,3241.6,3241.5,2.72066811]
[1736900773064,0.30857,3241.9,3241.7,0.30858]
[1736900773265,0.30855,3242.0,3241.9,2.41206811]
[1736900773959,0.30855,3242.0,3241.9,2.72062811]
[1736900774166,3.97315,3242.1,3241.9,2.72062811]
[1736900774360,0.69284562,3248.0,3241.9,2.41206811]
[1736900774361,3.2078,3242.5,3241.9,2.41206811]
[1736900774566,3.2078,3242.5,3242.4,2.72058811]
[1736900775564,3.21014544,3242.5,3242.4,2.72058811]
[1736900775870,0.00234544,3242.5,3242.4,2.72058811]
[1736900776171,3.51625,3243.2,3243.0,0.30846]
[1736900776372,3.51625,3243.2,3243.1,2.41206811]
[1736900776567,3.2078,3243.2,3243.1,2.41206811]
[1736900776968,3.2078,3243.2,3243.1,2.72051811]
[1736900777466,3.2078,3243.7,3243.2,0.30843]
[1736900777770,3.2078,3243.7,3243.6,3.23006554]
[1736900778076,15.0,3244.0,3243.8,0.30838]
[1736900778369,15.0,3244.0,3243.9,0.30837]
[1736900779473,0.30838,3243.9,3243.6,3.23005554]
[1736900779670,0.30839,3243.8,3243.6,2.92166554]
[1736900780569,0.30838,3243.9,3243.6,3.23006554]
[1736900780969,15.0,3244.0,3243.6,2.92166554]
[1736900780970,0.30839,3243.8,3243.6,2.92166554]
[1736900781171,0.4601,3243.7,3243.6,2.92166554]
[1736900781469,0.76849,3243.7,3243.6,2.92166554]
[1736900781675,0.30842,3243.4,3243.3,3.2078]
[1736900781869,0.30842,3243.5,3243.3,3.2078]
[1736900782367,0.4601,3243.7,3243.3,3.2078]
[1736900782564,0.3084,3243.6,3243.3,3.2078]
[1736900782872,0.3084,3243.6,3242.3,5.57387417]
[1736900782873,3.2078,3243.6,3242.9,2.92166554]
[1736900783071,0.30846,3243.0,3242.9,2.92166554]
[1736900783464,0.30846,3243.0,3242.0,0.77139]
[1736900783465,3.2078,3243.1,3242.6,2.92166554]
[1736900783664,0.4601,3243.7,3242.2,2.92166554]
[1736900783665,3.2078,3242.7,3242.2,2.92166554]
[1736900783969,3.41714622,3242.6,3241.9,5.09921417]
[1736900784169,0.30854,3242.2,3241.9,5.09921417]
[1736900784472,0.30855,3242.1,3241.8,3.51637]
[1736900784673,3.91574622,3242.6,3241.8,3.2078]
[1736900784871,0.30854,3242.2,3242.1,2.92166554]
[1736900785066,0.30852,3242.4,3242.1,3.23020554]
[1736900785267,1.276,3242.6,3242.3,0.30852]
[1736900785575,1.276,3242.6,3242.1,2.92166554]
[1736900785576,0.30854,3242.2,3242.1,2.92166554]
[1736900787365,0.30856,3241.9,3241.8,3.2078]
[1736900788274,3.2078,3242.3,3241.7,2.92166554]
[1736900788472,0.30857,3241.8,3241.7,2.92166554]
[1736900790072,3.2078,3242.3,3241.7,2.92166554]
[1736900790279,0.30857,3241.9,3241.7,2.92166554]
[1736900790577,0.30857,3241.8,3241.7,2.92166554]
[1736900792283,11.76214429,3241.8,3240.4,2.92166554]
[1736900792579,11.76214429,3241.8,3241.2,2.92166554]
[1736900792580,3.2078,3241.6,3241.2,2.92166554]
[1736900792769,0.30862,3241.3,3241.2,2.92166554]
[1736900794381,0.3086,3241.5,3241.2,3.23029554]
[1736900794582,4.5398,3242.0,3241.2,6.12946554]
[1736900794780,0.30856,3241.9,3241.3,0.30861]
[1736900795086,0.30861,3241.5,3241.2,6.43809554]
[1736900795375,0.30856,3241.9,3241.6,0.30859]
[1736900795585,3.51636,3242.0,3241.8,0.30857]
[1736900795779,3.2078,3242.0,3241.8,0.30857]
[1736900795983,3.51636,3242.0,3241.8,0.30857]
[1736900796485,3.51636,3242.0,3241.7,0.30858]
[1736900796992,3.51636,3242.0,3241.8,0.30857]
[1736900797191,3.51636,3242.0,3241.6,2.92166554]
[1736900797478,3.2078,3242.0,3241.7,0.30858]
[1736900797684,3.51636,3242.0,3241.8,0.30857]
[1736900797881,3.2078,3242.4,3241.6,6.12946554]
[1736900798076,0.30853,3242.3,3242.1,0.30854]
[1736900798491,0.30854,3242.2,3242.0,3.23021554]
[1736900798985,3.2078,3242.4,3242.0,2.92166554]
[1736900799182,3.2078,3242.4,3242.3,0.30853]
[1736900799379,3.2078,3243.0,3242.3,3.2078]
[1736900799584,0.77098,3243.8,3243.1,0.30845]
[1736900799585,0.30844,3243.3,3243.1,0.30845]
[1736900799889,0.30844,3243.2,3243.0,0.30845]
[1736900800084,3.7008,3243.5,3242.9,2.92166554]
[1736900800284,3.2078,3243.0,3242.5,2.92166554]
[1736900800489,0.30849,3242.8,3242.5,3.23016554]
[1736900800687,3.2078,3243.0,3242.5,3.23016554]
[1736900800988,0.30849,3242.7,3242.5,3.23016554]
[1736900802987,3.2078,3243.0,3242.5,2.92166554]
[1736900802988,0.3085,3242.6,3242.5,2.92166554]
[1736900803784,3.2078,3243.0,3242.2,0.30853]
[1736900803785,4.43866,3243.0,3242.2,0.30853]
[1736900803980,0.30851,3242.5,3242.3,0.30852]
[1736900804389,0.30847,3242.9,3242.2,0.30853]
[1736900804588,0.30851,3242.5,3242.3,0.30853]
[1736900804985,3.6675,3243.0,3242.3,0.30853]
[1736900805184,0.30851,3242.5,3242.3,0.30853]
[1736900805384,3.6675,3243.0,3242.4,0.30851]
[1736900805385,0.30849,3242.7,3242.4,0.30851]
[1736900805585,0.3085,3242.6,3242.4,0.30851]
[1736900806284,3.2078,3242.6,3242.1,2.92166554]
[1736900806484,0.30854,3242.1,3242.0,40.8]
[1736900808694,0.77794,3242.1,3242.0,40.8]
[1736900809589,0.4694,3242.1,3242.0,40.8]
[1736900809790,0.30854,3242.1,3242.0,40.8]
[1736900810691,3.2078,3243.0,3242.0,40.8]
[1736900810991,0.30851,3242.5,3242.3,0.30852]
[1736900811291,0.3085,3242.6,3242.4,41.10852]
[1736900812181,0.3085,3242.6,3242.4,41.10851]
[1736900813096,0.3085,3242.6,3242.4,40.8]
[1736900813396,0.3085,3242.6,3242.4,41.10851]
[1736900816492,3.707,3243.0,3242.4,41.10851]
[1736900816493,3.707,3243.0,3242.4,40.8]
[1736900816789,3.707,3243.0,3241.4,3.2078]
[1736900816790,6.73311535,3242.5,3241.4,3.2078]
[1736900816997,3.2078,3241.9,3241.4,3.2078]
[1736900817192,0.30858,3241.8,3241.5,0.30859]
[1736900817398,0.30858,3241.8,3241.4,3.2078]
[1736900817591,3.2078,3241.9,3241.6,40.8]
[1736900817789,0.30858,3241.7,3241.6,40.8]
[1736900822101,0.30864,3241.1,3241.0,3.2078]
[1736900822699,0.30864,3241.1,3241.0,44.0078]
[1736900823198,3.2078,3241.5,3241.0,44.31644]
[1736900823199,0.30864,3241.2,3241.0,44.31644]
[1736900823497,0.30864,3241.2,3241.0,44.0078]
[1736900823685,0.30864,3241.2,3241.0,44.31645]
[1736900823891,3.2078,3241.5,3241.0,44.31645]
[1736900823892,0.30864,3241.1,3241.0,44.31645]
[1736900824098,0.30864,3241.1,3241.0,44.0078]
[1736900824591,0.30864,3241.1,3241.0,44.31645]
[1736900824794,0.30864,3241.1,3241.0,44.0078]
[1736900824994,0.30864,3241.1,3241.0,40.8]
[1736900825194,3.51644,3241.1,3241.0,40.8]
[1736900826197,0.30864,3241.1,3241.0,40.8]
[1736900827509,3.51644,3241.1,3241.0,40.8]
[1736900829403,8.27438816,3241.1,3241.0,40.8]
[1736900829694,0.77166,3240.9,3240.2,2.41522964]
[1736900829894,0.30872,3240.3,3240.2,2.41522964]
[1736900830200,3.2078,3240.7,3240.2,43.21522964]
[1736900830402,0.30872,3240.3,3240.2,40.8]
[1736900831795,0.30871,3240.4,3240.2,40.8]
[1736900831998,0.4818,3240.8,3240.2,43.72780692]
[1736900832196,3.2078,3241.2,3240.4,3.2078]
[1736900832499,0.30868,3240.8,3240.5,0.30869]
[1736900832700,0.4772,3241.1,3240.3,2.92780692]
[1736900832701,0.30871,3240.4,3240.3,2.92780692]
[1736900833204,0.4954,3240.6,3240.2,40.8]
[1736900833396,3.51648,3240.7,3240.4,0.30871]
[1736900833602,3.2078,3240.7,3240.3,2.92780692]
[1736900833810,0.30871,3240.4,3240.3,2.92780692]
[1736900834597,0.30872,3240.3,3240.2,40.8]
[1736900836197,3.51652,3240.3,3240.2,40.8]
[1736900836898,3.2078,3240.3,3240.2,41.10873]
[1736900837302,3.51652,3240.3,3240.2,40.8]
[1736900837892,0.30875,3240.0,3239.8,0.30876]
[1736900838304,0.30875,3240.0,3239.9,40.8]
[1736900839598,0.30874,3240.1,3239.9,41.10875]
[1736900840103,0.30874,3240.1,3239.9,40.8]
[1736900840293,0.30874,3240.1,3239.9,41.10875]
[1736900840493,0.30874,3240.1,3239.9,40.8]
[1736900841006,0.30874,3240.1,3239.9,41.10875]
[1736900841803,0.30874,3240.0,3239.9,40.8]
[1736900842907,4.24480692,3240.0,3239.1,3.2078]
[1736900843099,4.24480692,3240.0,3238.6,3.2078]
[1736900843100,3.2078,3239.5,3238.6,3.2078]
[1736900843300,3.2078,3239.0,3238.4,0.3089]
[1736900843507,0.30888,3238.6,3238.5,40.8]
[1736900844199,0.30885,3238.9,3238.5,40.8]
[1736900844400,0.30888,3238.6,3238.5,40.8]
[1736900846904,0.30889,3238.5,3238.2,4.1462]
[1736900847105,3.2078,3239.0,3238.6,0.00285309]
[1736900847301,0.30887,3238.7,3238.6,0.00285309]
[1736900849010,3.2078,3239.0,3238.6,40.80285309]
[1736900849405,0.30887,3238.7,3238.6,40.80285309]
[1736900849609,3.2078,3239.0,3238.6,40.80285309]
[1736900849798,3.2078,3239.0,3238.9,0.30885]
[1736900850001,3.2078,3239.0,3238.6,40.80285309]
[1736900850209,3.2078,3239.0,3238.8,0.30885]
[1736900850810,3.2078,3239.0,3238.7,0.30887]
[1736900851106,3.6771,3239.4,3239.3,0.30881]
[1736900851311,3.2078,3239.4,3239.3,0.30881]
[1736900851712,1.332,3239.6,3239.5,0.30879]
[1736900852012,0.482,3239.9,3239.3,40.8]
[1736900852409,0.30879,3239.6,3239.4,0.3088]
[1736900852607,0.482,3239.9,3239.3,40.8]
[1736900852810,0.3088,3239.5,3239.3,40.8]
[1736900853008,0.482,3239.9,3239.3,40.8]
[1736900853510,0.30878,3239.6,3239.3,40.8]
[1736900853710,0.30878,3239.6,3239.3,41.1088]
[1736900854012,0.482,3239.9,3239.3,40.8]
[1736900854207,0.482,3239.9,3239.5,0.30879]
[1736900854409,0.3088,3239.4,3239.3,40.8]
[1736900857715,3.51659,3239.6,3239.4,0.3088]
[1736900858315,3.2078,3239.6,3239.3,40.8]
[1736900858622,0.3088,3239.4,3239.3,40.8]
[1736900859014,0.4935,3239.5,3238.9,0.30884]
[1736900859219,0.30885,3238.9,3238.7,3.51666]
[1736900859516,0.30885,3238.9,3238.8,40.8]
[1736900860115,3.2078,3239.1,3238.6,0.00285309]
[1736900860321,0.30887,3238.7,3238.6,0.00285309]
[1736900860719,0.30887,3238.7,3238.6,40.80285309]
[1736900862016,3.51667,3238.7,3238.6,40.80285309]
[1736900862725,0.30893,3238.1,3238.0,0.002]
[1736900863125,0.30893,3238.1,3238.0,40.802]
[1736900863325,3.97203906,3238.1,3237.0,4.79065417]
[1736900863523,3.2078,3237.6,3237.0,4.79065417]
[1736900863724,0.30901,3237.3,3237.0,5.09968417]
[1736900864027,3.2078,3237.6,3237.0,5.09968417]
[1736900864227,3.2078,3237.6,3237.0,4.79065417]
[1736900864531,0.30901,3237.3,3237.0,0.30903]
[1736900864830,3.2078,3237.6,3236.9,4.1761]
[1736900865028,3.2078,3237.6,3236.9,3.2078]
[1736900865232,0.30904,3237.0,3236.6,0.30906]
[1736900865730,0.30904,3237.0,3236.9,40.8]
[1736900869837,3.2078,3237.6,3236.9,44.0078]
[1736900870131,2.92780692,3237.2,3236.6,3.2078]
[1736900870337,3.2078,3236.9,3236.2,3.2078]
[1736900870531,0.3091,3236.3,3236.2,3.2078]
[1736900870733,0.3091,3236.3,3236.2,44.0078]
[1736900871436,0.3091,3236.3,3236.2,40.8]
[1736900871740,0.77261,3237.0,3236.3,0.3091]
[1736900871741,0.30905,3236.9,3236.3,0.3091]
[1736900872035,0.4996,3237.1,3237.0,0.30903]
[1736900872239,3.2078,3237.4,3237.0,0.30903]
[1736900872738,3.2078,3237.4,3237.1,41.10902]
[1736900873032,3.2078,3237.4,3237.1,40.8]
[1736900873439,3.2078,3237.4,3237.1,41.10902]
[1736900874339,0.30901,3237.3,3237.1,40.8]
[1736900874740,0.30901,3237.2,3237.1,40.8]
[1736900874940,3.2078,3237.4,3237.1,40.8]
[1736900875337,3.5168,3237.4,3237.1,40.8]
[1736900877039,0.309,3237.3,3237.1,40.8]
[1736900877238,0.30899,3237.4,3237.1,41.10902]
[1736900877431,0.30897,3237.6,3237.2,0.30901]
[1736900878438,4.5408,3237.8,3237.2,0.30901]
[1736900878643,0.30898,3237.5,3237.2,0.30901]
[1736900880245,4.5408,3237.8,3237.1,40.8]
[1736900880440,0.309,3237.4,3237.1,40.8]
[1736900880838,0.309,3237.4,3237.1,41.10902]
[1736900881540,4.5408,3237.8,3237.1,40.8]
[1736900881541,0.30901,3237.2,3237.1,40.8]
[1736900882142,3.2078,3237.4,3236.4,4.1669]
[1736900882343,3.2078,3236.9,3236.4,4.1669]
[1736900882542,0.30908,3236.5,3236.4,3.2078]
[1736900882944,3.50178268,3236.8,3235.9,0.935]
[1736900883145,3.50178268,3236.8,3236.0,40.8]
[1736900883549,0.30911,3236.2,3236.0,40.8]
[1736900883753,3.2078,3236.5,3235.8,3.2078]
[1736900883939,0.77275,3236.3,3235.1,7.06510692]
[1736900884140,3.2078,3236.0,3235.3,0.30919]
[1736900884342,6.13560692,3236.0,3235.4,40.8]
[1736900884542,0.30918,3235.5,3235.4,40.8]
[1736900885249,3.2078,3235.6,3234.6,0.30925]
[1736900885250,0.30923,3235.0,3234.6,0.30925]
[1736900885445,0.30923,3235.0,3234.6,0.30926]
[1736900885752,0.30923,3235.0,3234.7,40.8]
[1736900885956,3.2078,3235.2,3234.7,40.8]
[1736900885957,0.30923,3234.9,3234.7,40.8]
[1736900886244,0.30924,3234.8,3234.7,40.8]
[1736900886447,0.30928,3234.4,3234.3,4.79065417]
[1736900886651,3.2078,3234.8,3234.1,0.3093]
[1736900886852,0.30927,3234.5,3234.1,0.3093]
[1736900887045,3.2078,3234.8,3234.2,40.8]
[1736900887552,3.2078,3234.8,3234.3,0.30928]
[1736900887740,0.4782,3235.1,3234.2,40.8]
[1736900887942,0.30927,3234.6,3234.2,41.1093]
[1736900888145,3.2078,3234.8,3234.2,40.8]
[1736900888345,0.30927,3234.6,3234.2,41.10929]
[1736900888748,0.30926,3234.7,3234.2,41.10929]
[1736900889350,0.30927,3234.5,3234.2,40.8]
[1736900889655,0.30926,3234.6,3234.2,40.8]
[1736900890156,0.30927,3234.5,3234.2,40.8]
[1736900890651,3.2078,3234.7,3234.2,40.8]
[1736900890951,0.30929,3234.3,3234.2,40.8]
[1736900892254,0.4737,3234.6,3234.2,40.8]
[1736900892455,0.30928,3234.4,3234.2,40.8]
[1736900893151,0.30929,3234.3,3234.2,40.8]
[1736900893952,0.78297,3234.6,3234.2,40.8]
[1736900894148,3.2078,3234.7,3234.2,40.8]
[1736900894355,0.30928,3234.5,3234.2,40.8]
[1736900894550,0.30929,3234.3,3234.2,40.8]
[1736900895152,0.30928,3234.4,3234.2,40.8]
[1736900896154,3.56676256,3234.6,3234.2,40.8]
[1736900896360,0.30929,3234.3,3234.2,40.8]
[1736900896670,0.30928,3234.4,3234.2,40.8]
[1736900897552,3.56676256,3234.6,3234.2,40.8]
[1736900897864,0.30926,3234.6,3234.2,40.8]
[1736900898254,3.2078,3234.7,3234.2,40.8]
[1736900898559,3.51709,3234.3,3234.2,40.8]
[1736900898754,3.51709,3234.3,3233.7,0.30934]
[1736900898755,0.30931,3234.1,3233.7,0.30934]
[1736900898955,3.2078,3234.3,3233.6,3.2078]
[1736900899257,3.2078,3234.3,3234.0,0.30931]
[1736900899651,3.2078,3234.3,3233.8,40.8]
[1736900899652,3.2078,3234.3,3234.2,0.3093]
[1736900899859,0.30927,3234.6,3234.2,0.30929]
[1736900900455,0.30927,3234.6,3233.8,40.8]
[1736900900654,0.30927,3234.6,3234.3,0.30929]
[1736900900852,3.99154,3234.9,3234.0,3.2078]
[1736900901056,3.6823,3234.9,3234.1,0.4833]
[1736900901257,0.30928,3234.4,3234.1,0.3093]
[1736900901457,3.33587781,3234.8,3234.1,0.3093]
[1736900901659,3.51708,3234.5,3234.1,0.3093]
[1736900902049,3.2078,3234.5,3234.2,0.3093]
[1736900902257,3.2078,3235.7,3234.4,5.63303338]
[1736900902455,0.3092,3235.2,3234.9,3.2078]
[1736900902657,0.30923,3235.0,3234.7,0.30925]
[1736900902857,0.30924,3234.9,3234.8,40.8]
[1736900903254,3.2078,3235.3,3234.8,43.22523338]
[1736900903255,0.4603,3235.2,3234.8,43.22523338]
[1736900903454,3.2078,3235.3,3235.2,0.3092]
[1736900904361,0.30917,3235.5,3235.1,0.30921]
[1736900904550,0.4657,3235.6,3234.9,3.2078]
[1736900904755,0.30922,3235.0,3234.9,3.2078]
[1736900905155,0.30925,3234.8,3234.4,0.30927]
[1736900905450,0.30925,3234.8,3234.5,40.8]
[1736900905652,0.4697,3234.9,3234.0,0.4963]
[1736900905856,0.3093,3234.2,3233.9,3.2078]
[1736900906060,3.6768,3234.7,3233.9,3.2078]
[1736900906261,0.30932,3234.0,3233.9,3.2078]
[1736900907165,4.09438707,3234.6,3233.9,3.2078]
[1736900907350,0.30932,3234.0,3233.9,3.2078]
[1736900907964,3.32122707,3234.6,3233.9,3.2078]
[1736900908259,3.32122707,3234.6,3233.9,3.51712]
[1736900908461,0.3093,3234.2,3233.9,3.51712]
[1736900908655,3.32122707,3234.6,3234.2,0.3093]
[1736900908965,5.0108,3234.7,3233.8,2.93810286]
[1736900908966,2.11225,3234.7,3234.4,3.51707]
[1736900909152,2.11225,3234.7,3234.4,3.2078]
[1736900909362,2.11226,3234.7,3234.4,3.2078]
[1736900909561,0.30926,3234.6,3234.4,3.2078]
[1736900909758,0.30927,3234.5,3234.0,3.2078]
[1736900909965,0.30927,3234.5,3234.2,0.30929]
[1736900910261,0.30926,3234.6,3234.1,0.30931]
[1736900910459,0.30926,3234.6,3234.3,0.30929]
[1736900911459,0.77894,3234.9,3234.5,0.30927]
[1736900911960,0.4697,3234.9,3234.7,0.30925]
[1736900912168,3.51702,3235.1,3234.7,0.30925]
[1736900912860,3.2078,3235.1,3234.6,43.73810286]
[1736900913059,3.2078,3235.1,3235.0,0.30922]
[1736900913269,0.4665,3235.4,3235.0,3.2078]
[1736900913465,0.4665,3235.4,3235.1,0.30921]
[1736900914562,0.4588,3235.5,3235.0,6.14590286]
[1736900914763,0.30916,3235.7,3235.0,6.14590286]
[1736900915065,0.30917,3235.6,3235.2,0.3092]
[1736900915762,0.30917,3235.6,3235.1,0.30921]
[1736900916161,0.3093,3234.2,3234.1,2.27452417]
[1736900916461,10.95003527,3234.2,3233.6,24.53442423]
[1736900916664,6.45525286,3233.7,3233.6,19.74201945]
[1736900917053,14.91738527,3233.7,3233.6,19.74201945]
[1736900917469,14.60803527,3233.7,3232.5,0.002]
[1736900917654,0.30943,3232.9,3232.5,0.002]
[1736900917854,1.342,3233.3,3232.6,3.2078]
[1736900918058,1.65139,3233.3,3232.6,0.30944]
[1736900918261,1.33847834,3233.3,3232.6,0.30945]
[1736900918561,0.30941,3233.1,3232.5,3.51926]
[1736900918761,4.2765812,3233.3,3232.5,0.002]
[1736900919160,0.30943,3232.9,3232.5,3.2098]
[1736900919360,0.30943,3232.9,3232.5,0.002]
[1736900919361,2.93810286,3232.9,3232.5,0.002]
[1736900919664,0.30945,3232.6,3232.5,0.002]
[1736900920464,3.2078,3233.0,3232.5,0.002]
[1736900920855,0.30945,3232.7,3232.5,0.002]
[1736900921165,0.30943,3232.9,3232.5,0.002]
[1736900921369,0.30941,3233.0,3232.6,0.30945]
[1736900921766,0.30942,3232.9,3232.6,0.30945]
[1736900922172,3.2078,3233.1,3232.7,40.8]
[1736900922675,0.30943,3232.8,3232.7,40.8]
[1736900923974,0.30943,3232.9,3232.7,40.8]
[1736900924170,3.2078,3233.1,3232.7,40.8]
[1736900924371,0.30943,3232.8,3232.7,40.8]
[1736900925972,0.30943,3232.9,3232.7,40.8]
[1736900926269,4.5498,3233.1,3232.7,40.8]